Cogmind - Beta 15 @@@ ROGUE MODE // 2025.07.10 @ 13:35:38 Player: Stump Result: Destroyed by P-60 Hacker with Shock Rifle Performance ------------- Evolutions (2) 1000 Regions Visited (4) 800 Robots Destroyed (91) 455 Value Destroyed (3684) 3684 Prototype IDs (0) 0 Alien Tech Used (0) 0 Bonus (1125) 1125 TOTAL SCORE: 7064 Bonus ------- High Alert Combat Kills 925 Entered Garrisons 200 Cogmind --------- Core Integrity 0/550 Matter 229/300 Energy 240/240 System Corruption 8% Temperature Cool (0) Movement Treading (160) Location -8/Garrison Parts ------- > --- POWER (1) -------- Nuclear Core > --- PROPULSION (3) --- Light Treads Light Treads Light Treads > --- UTILITY (4) ------ Medium Storage Unit Improved Signal Interpreter Improved Melee Analysis Suite Layered Medium Armor Plating > --- WEAPON (3) ------- High-powered Shotgun Power Sword Power Sword > --- INVENTORY (10) --- Micro Nuclear Core VSS Leg Improved Heat Sink Compact Matter Pod (131) Sensor Array Improved Signal Interpreter Improved Melee Analysis Suite Improved Melee Analysis Suite Microactuators Improved Medium Armor Plating Peak State ------------ > --- POWER ------------ Nuclear Core > --- PROPULSION ------- VSS Leg VSS Leg VSS Leg > --- UTILITY ---------- Improved Heat Sink Medium Storage Unit Improved Signal Interpreter Improved Medium Armor Plating > --- WEAPON ----------- High-powered Shotgun Gauss Rifle Advanced Assault Cannon > --- INVENTORY -------- Light Treads Light Treads Aluminum Leg Compact Matter Pod Sensor Array Improved Signal Interpreter Relay Coupler [Grunt] Relay Coupler [Demolisher] Advanced Assault Cannon Makeshift Axe [Rating: 36] Favorites ----------- Power Nuclear Core Engine Subdweller Power Source Power Core Nuclear Core Propulsion Light Treads Treads Light Treads Leg Aluminum Leg Utility Improved Signal Interpreter Device Improved Heat Sink Storage Medium Storage Unit Processor Improved Signal Interpreter Protection Layered Medium Armor Plating Weapon Advanced Assault Cannon Energy Gun Gatling Laser Energy Cannon Subdweller Beam Cannon Ballistic Gun High-powered Shotgun Ballistic Cannon Advanced Assault Cannon Launcher Subdweller Shrapnel Launcher Impact Weapon Heavy Hammer Slashing Weapon Power Sword Build | -11 -10 -10 -8 -8 ------- Run | Yrd Mat Sub Mat Gar Slots Evolved 4 | . . . 4 . Power . | . . . . . Propulsion 1 | . . . 1 . Utility 2 | . . . 2 . Weapon 1 | . . . 1 . Parts Attached 65 | 4 7 10 15 29 Power 7 | 1 . 2 1 3 Engine 3 | 1 . 2 . . Core 4 | . . . 1 3 Reactor . | . . . . . Propulsion 21 | 2 1 2 3 13 Treads 12 | . . 2 3 7 Leg 9 | 2 1 . . 6 Wheel . | . . . . . Hover . | . . . . . Flight . | . . . . . Utility 14 | 1 1 1 4 7 Device 5 | . 1 . 2 2 Storage 2 | 1 . . 1 . Processor 2 | . . . 1 1 Hackware . | . . . . . Protection 5 | . . 1 . 4 Artifact . | . . . . . Weapon 23 | . 5 5 7 6 Energy Gun 7 | . 3 1 2 1 Energy Cannon 1 | . . 1 . . Ballistic Gun 5 | . 1 . 1 3 Ballistic Cannon 4 | . . . 4 . Launcher 1 | . . 1 . . Special Weapon . | . . . . . Impact Weapon 2 | . 1 1 . . Slashing Weapon 3 | . . 1 . 2 Piercing Weapon . | . . . . . Special Melee Weapon . | . . . . . Unidentified Prototypes . | . . . . . Parts Lost 27 | . 1 7 4 15 Power 4 | . . 1 . 3 Propulsion 9 | . 1 2 2 4 Utility 3 | . . 1 . 2 Weapon 11 | . . 3 2 6 Highest Loss Streak 4 | . 1 4 1 4 To Critical Strikes 2 | . . 1 . 1 Average Backups 7 | 3 5 5 6 9 Power . | . 1 . . . Propulsion 1 | 1 2 1 . 2 Utility 3 | . . 1 2 5 Weapon 1 | 1 1 2 3 1 Tool/Special . | . . . . . Unused Backups 16 | . 2 1 . 13 Power 3 | . . . . 3 Propulsion 3 | . 2 . . 1 Utility 10 | . . 1 . 9 Weapon . | . . . . . Tool/Special . | . . . . . Average Slot Usage (%) 93 | . 95 85 93 96 Engine 4 | . 14 12 2 . Core 5 | . . . 6 8 Treads 16 | . . 22 23 14 Leg 8 | . 26 3 . 11 Device 9 | . 11 10 17 7 Storage 8 | . 14 6 9 9 Processor 6 | . . . 8 10 Protection 5 | . . 1 . 8 Energy Gun 7 | . 18 9 7 4 Energy Cannon 3 | . . 9 2 1 Ballistic Gun 7 | . 8 4 1 10 Ballistic Cannon 5 | . . . 10 6 Slashing Weapon 1 | . . 1 . 2 Peak Build Rating 36 | 4 10 15 32 36 Average Rating 23 | 3 7 10 26 31 On Entrance 11 | . 4 10 15 30 Naked Turns . | . . . . . Heaviest Build 42 | 10 17 31 35 42 Greatest Support 69 | 20 20 46 69 60 Greatest Overweight (x) 11 | . 1 1 . 11 Average Overweight (x) . | . . . . . Largest Inventory Capacity 10 | 8 8 8 10 10 Average Capacity 8 | 7 8 6 9 10 Most Carried 10 | 5 8 8 10 10 Average Carried 7 | 3 5 5 6 9 Final Capacity 10 | 8 8 8 10 10 Final Carried 10 | 5 8 5 9 10 Class Distribution -------------------- 35% | Mutant 35% | Scavenger-Tank 10% | Skirmisher 6% | Scavenger-Mutant 5% | Scavenger-Gladiator 4% | Tank Dominant Class ---------------- Mutant | -10/Materials Mutant | -10/Subcaves Skirmisher | -8/Materials Scavenger-Tank | -8/Garrison Resources | -11 -10 -10 -8 -8 ----------- Run | Yrd Mat Sub Mat Gar Matter Collected 2904 | 239 89 249 677 1650 Remotely . | . . . . . Salvage Created 2577 | . 167 287 666 1457 Parts 163 | . 9 15 42 97 Haulers Intercepted 2 | . 1 . 1 . Recyclers Shooed 2 | . . . 2 . Parts Field Recycled . | . . . . . Retrieved Matter . | . . . . . Parts Self-Destructed 8 | . . 8 . . Prevented . | . . . . . Kills | -11 -10 -10 -8 -8 ------- Run | Yrd Mat Sub Mat Gar Combat Hostiles Destroyed 81 | . 2 8 25 46 Melee 4 | . . . . 4 Guns 35 | . 1 2 7 25 Cannons 32 | . . 4 12 16 AOE 8 | . 1 1 6 . Classes Destroyed 15 | . 4 3 5 3 Worker 1 | . . . 1 . Builder 3 | . 1 . 2 . Hauler 2 | . 1 . 1 . Turret 2 | . . 2 . . Watcher 2 | . 1 . . 1 Swarmer 20 | . . 2 5 13 Grunt 30 | . 2 . 14 14 Brawler 3 | . . . . 3 Duelist 5 | . . . 2 3 Sentry 5 | . . . . 5 Specialist 5 | . . . 2 3 Hunter 3 | . . . 1 2 Programmer 3 | . . . . 3 Heavy 1 | . . . 1 . Subdweller 6 | . . 6 . . Best Kill Streak 10 | . 2 2 10 7 Combat Bots Only 7 | . 2 2 7 7 Max Kills in Single Turn 4 | . 1 2 4 2 Gunslinging . | . . . . . Exploded 4 | . 1 1 4 . Melee 1 | . . . . 1 Uniques/NPCs Destroyed . | . . . . . Combat | -11 -10 -10 -8 -8 -------- Run | Yrd Mat Sub Mat Gar Hostile Shots Fired 504 | . 11 83 143 267 Missed 155 | . 2 33 49 71 Hits 349 | . 9 50 94 196 Melee 9 | . . . 1 8 Projectile 340 | . 9 50 93 188 AOE 5 | . . 5 . . Critical Strikes 21 | . . 2 6 13 Damage Taken 5375 | . 178 1016 1425 2756 Core 737 | . . 179 217 341 Absorbed by Shields . | . . . . . Core Remaining (%) 64 | 100 . 28 . . Volleys Fired 204 | . 10 31 49 114 Largest 3 | . 2 2 3 3 Hottest 200 | . 90 120 160 200 Shots Fired 499 | . 17 53 140 289 Gun 268 | . 17 27 45 179 Cannon 224 | . . 23 91 110 Launcher 7 | . . 3 4 . Special . | . . . . . Kinetic 332 | . 5 21 95 211 Thermal 153 | . 2 28 45 78 Explosive . | . . . . . Electromagnetic 14 | . 10 4 . . Robot Hit Streak 16 | . 3 16 9 9 Robot Miss Streak 7 | . 2 2 6 7 Penetration Max 1 | . . . . 1 Secondary Targets . | . . . . . Shots Hit Robots 302 | . 9 43 89 161 Core Hits 158 | . 4 16 57 81 Critical Kills 1 | . . . . 1 Critical Parts Destroyed 2 | . . 1 . 1 Critical Strikes 11 | . . 1 4 6 Burn 1 | . . . . 1 Meltdown 1 | . . . . 1 Destroy 1 | . . . . 1 Blast 6 | . . . 4 2 Smash 1 | . . 1 . . Sever 1 | . . . . 1 Melee Attacks 20 | . . 6 . 14 Impact 2 | . . 2 . . Slashing 18 | . . 4 . 14 Piercing . | . . . . . Sneak Attacks 1 | . . . . 1 Combat Hostiles 1 | . . . . 1 Follow-up Attacks 1 | . . . . 1 Damage Inflicted 8571 | . 306 1114 3186 3965 Guns 3349 | . 130 240 947 2032 Cannons 3164 | . . 442 1289 1433 Explosions 1377 | . 161 266 950 . Melee 666 | . . 166 . 500 Ramming 15 | . 15 . . . Kinetic 4994 | . 39 428 1993 2534 Thermal 2531 | . 172 481 947 931 Explosive 246 | . . . 246 . Electromagnetic 119 | . 80 39 . . Impact 92 | . . 92 . . Slashing 574 | . . 74 . 500 Piercing . | . . . . . Highest Corruption 7 | . . . . 7 Average Corruption 5 | . . . . 5 Corruption Purged . | . . . . . Corruption Blocked . | . . . . . Effects 25 | . . . . 25 Message Errors 9 | . . . . 9 Matter Fused 5 | . . . . 5 Heat Flow Errors 3 | . . . . 3 Energy Discharges 5 | . . . . 5 Data Loss (minor) 1 | . . . . 1 Data Loss (major) 1 | . . . . 1 Misfires 1 | . . . . 1 Overload Shots . | . . . . . Overflow Damage 263 | . 58 77 97 31 Projectiles 43 | . . . 20 23 Explosions 157 | . 58 22 77 . Melee 63 | . . 55 . 8 Knockbacks 24 | . . 1 12 11 Impact 1 | . . 1 . . Kinetic 22 | . . . 11 11 Secondary 1 | . . . 1 . Self-Inflicted Damage 75 | . 75 . . . Shots 1 | . 1 . . . Rammed . | . . . . . Targets Rammed 2 | . 2 . . . Kicked 2 | . 2 . . . Crushed . | . . . . . Highest Temperature 451 | . 198 18 451 429 Average Temperature 117 | . 99 12 157 92 Received Heat Transfer 1356 | . 54 69 504 729 Effects 11 | . . . 5 6 Shutdowns 2 | . . . 2 . Energy Bleed 1 | . . . 1 . Interference 6 | . . . . 6 Short Circuit 1 | . . . 1 . Damage (minor) 1 | . . . 1 . Siege Activations . | . . . . . Martial Activations . | . . . . . Shielding Activations . | . . . . . Robots Disrupted . | . . . . . Combat Hostiles . | . . . . . Robots Corrupted 1 | . . 1 . . Combat Hostiles 1 | . . 1 . . Parts Fried 1 | . . 1 . . Impact Corruptions 1 | . . 1 . . Robots Melted 1 | . . . . 1 Combat Hostiles 1 | . . . . 1 Parts Melted 5 | . . 1 . 4 Heat Transferred 4959 | . 175 667 2125 1992 Parts Sabotaged . | . . . . . Parts Stolen . | . . . . . Parts Stripped . | . . . . . Power Chain Reactions 1 | . 1 . . . Alert | -11 -10 -10 -8 -8 ------- Run | Yrd Mat Sub Mat Gar Maximum Alert Level 5 | . . . 2 5 Low Security (%) 20 | 100 100 . 56 . Level 1 6 | . . . 14 5 Level 2 16 | . . . 29 15 Level 3 20 | . . . . 28 Level 4 19 | . . . . 27 Level 5 16 | . . . . 23 High Security . | . . . . . Max Security . | . . . . . Peak Influence 2132 | . 115 . 513 2132 Initial 328 | . . . 52 328 Average 873 | . 43 . 218 1163 Influence Increases 3038 | . 178 125 781 1954 Destroy 0b10 Robot/C 1540 | . 40 80 500 920 Destroy 0b10 Robot/NC 40 | . 15 . 20 5 Destroy Leader 146 | . 14 . 112 20 Successful Hack 20 | . 6 . . 14 Disable Machine 120 | . 60 . 60 . Anti-Garrison Action 900 | . . . . 900 Destroy Structure 167 | . 43 . 74 50 Lose Combat Pursuer 105 | . . 45 15 45 Influence Decreases 906 | . 111 91 377 327 Entered New Map 259 | . . 33 49 177 Time Decay 443 | . 101 54 288 . Lost Part 204 | . 10 4 40 150 Squads Dispatched 7 | . 1 . 6 . Investigation 2 | . 1 . 1 . Extermination . | . . . . . Reinforcement 4 | . . . 4 . Assault . | . . . . . Garrison 1 | . . . 1 . Intercept . | . . . . . Searches Triggered . | . . . . . Construction Impeded 1 | . . . 1 . Haulers Reinforced . | . . . . . Active Scanning Responses . | . . . . . Cargo Convoy Interrupts . | . . . . . Stealth | -11 -10 -10 -8 -8 --------- Run | Yrd Mat Sub Mat Gar Distress Signals 1 | . . . . 1 Communications Jammed . | . . . . . Distress Signals . | . . . . . Times Spotted 96 | . 4 13 31 48 Peak Tracking Total 6 | . 2 3 6 5 Tactical Retreats 4 | . . 1 1 2 Traps | -11 -10 -10 -8 -8 ------- Run | Yrd Mat Sub Mat Gar Traps Triggered 7 | . 1 . 1 5 Indirectly . | . . . . . Trap Hack Attempts . | . . . . . Triggered . | . . . . . Disarmed . | . . . . . Reprogrammed . | . . . . . Reused . | . . . . . Traps Extracted . | . . . . . Installed . | . . . . . Triggered . | . . . . . Machines | -11 -10 -10 -8 -8 ---------- Run | Yrd Mat Sub Mat Gar Machines Disabled 12 | . 4 2 4 2 Max in Single Turn 3 | . 3 2 2 1 Garrison Relay 2 | . . . . 2 Machines Repaired . | . . . . . Machines Dismantled . | . . . . . Machines Sabotaged . | . . . . . Overloaded Fab Kills . | . . . . . Hacking | -11 -10 -10 -8 -8 --------- Run | Yrd Mat Sub Mat Gar Machines Accessed 4 | . 1 . 2 1 Terminals 3 | . 1 . 1 1 Fabricators . | . . . . . Repair Stations . | . . . . . Recycling Units . | . . . . . Scanalyzers . | . . . . . Garrison Access 1 | . . . 1 . Total Hacks 9 | . 5 . 2 2 Successful 5 | . 3 . 1 1 Failed 4 | . 2 . 1 1 Catastrophic 3 | . 2 . 1 . Database Lockouts . | . . . . . Manual 4 | . 3 . 1 . Terminals 8 | . 5 . 1 2 Fabricators . | . . . . . Repair Stations . | . . . . . Recycling Units . | . . . . . Scanalyzers . | . . . . . Garrison Access 1 | . . . 1 . Terminal Hacks 4 | . 3 . . 1 Emergency Access Points 2 | . 1 . . 1 Alert Level 1 | . 1 . . . Transport Status 1 | . 1 . . . Fabricator Hacks . | . . . . . Repair Station Hacks . | . . . . . Recycling Unit Hacks . | . . . . . Scanalyzer . | . . . . . Garrison Access Hacks 1 | . . . 1 . Unlock Access 1 | . . . 1 . Unauthorized Hacks . | . . . . . Terminals . | . . . . . Fabricators . | . . . . . Repair Stations . | . . . . . Recycling Units . | . . . . . Scanalyzers . | . . . . . Garrison Access . | . . . . . Data Cores Recovered . | . . . . . Used . | . . . . . Hacking Detections 3 | . 1 . 1 1 Full Trace Events 1 | . 1 . . . Feedback Events . | . . . . . Feedback Blocked . | . . . . . Robot Schematics Acquired . | . . . . . Robots Built . | . . . . . Authchips . | . . . . . Time . | . . . . . Total Robot Build Rating . | . . . . . Part Schematics Acquired . | . . . . . Parts Built . | . . . . . Authchips . | . . . . . Time . | . . . . . Total Part Build Rating . | . . . . . Parts Repaired . | . . . . . Time . | . . . . . Parts Recycled . | . . . . . Recycled Matter . | . . . . . Retrieved Matter . | . . . . . Retrieved Components . | . . . . . Parts Scanalyzed . | . . . . . Part Schematics Acquired . | . . . . . Parts Damaged . | . . . . . Bothacking | -11 -10 -10 -8 -8 ------------ Run | Yrd Mat Sub Mat Gar Used RIF Installer . | . . . . . Robots Hacked . | . . . . . Non-combat . | . . . . . Combat . | . . . . . Robot Hacks Applied . | . . . . . Relay Couplers Released 10 | . . . . 10 Machine Destruction 7 | . . . . 7 Programmers 3 | . . . . 3 Fabnet Peak Effective % . | . . . . . Robots Rewired . | . . . . . Allies Hacked . | . . . . . Hacks Repelled . | . . . . . Allies | -11 -10 -10 -8 -8 -------- Run | Yrd Mat Sub Mat Gar Total Allies . | . . . . . Largest Group . | . . . . . Highest-Rated Group . | . . . . . Highest-Rated Ally . | . . . . . Total Orders . | . . . . . Ally Attacks . | . . . . . Total Damage . | . . . . . Kills . | . . . . . Allies Corrupted . | . . . . . Allies Melted . | . . . . . Intel | -11 -10 -10 -8 -8 ------- Run | Yrd Mat Sub Mat Gar Active Infowar (turns) 2140 | . 318 1016 735 71 Optics 330 | . . . 266 64 Sensors 2076 | . 318 1016 735 7 Robot Analysis Total . | . . . . . Derelict Logs Recovered 1 | . . 1 . . Drone Launches . | . . . . . Drone Recoveries . | . . . . . Exploration | -11 -10 -10 -8 -8 ------------- Run | Yrd Mat Sub Mat Gar Turns Passed 5471 | 66 372 1372 735 2926 Spaces Moved 2776 | 53 252 769 307 1395 Core 16 | 14 . . . 2 Treads 1796 | . . 639 307 850 Legs 964 | 39 252 130 . 543 Wheels . | . . . . . Hover . | . . . . . Flight . | . . . . . Fastest Speed 50 | 50 120 120 160 90 Average Speed 161 | 101 121 160 163 171 Slowest Speed 600 | 120 190 190 165 600 Overloaded Moves . | . . . . . Propulsion Burnouts . | . . . . . Robots Hopped . | . . . . . Potential Cave-ins . | . . . . . Cave-ins Triggered . | . . . . . Exploration Rate (%) 40 | 4 47 44 20 87 Regions Visited 4 Branch Regions 1 Pre-discovered Areas 1 | . . 1 . . Known Exits Taken 1 | . . . 1 . Unknown Exits Taken 3 | 1 1 1 . . Scrap Searched 1 | . . 1 . . Spaces Dug . | . . . . . Terrain Destroyed 170 | . 41 38 89 2 Melee . | . . . . . Projectile 36 | . . 2 32 2 AOE 134 | . 41 36 57 . Terrain Rammed . | . . . . . Walls Destroyed . | . . . . . Machines Disabled . | . . . . . Actions | -11 -10 -10 -8 -8 --------- Run | Yrd Mat Sub Mat Gar Total 3298 | 65 300 845 422 1666 Wait 90 | . 17 8 25 40 Move 2772 | 52 251 768 306 1395 Hop . | . . . . . Pick Up 69 | 9 9 8 16 27 Fast Attach 12 | . 1 3 . 8 Attach 37 | 4 3 8 10 12 Detach 2 | . . 1 1 . Swap 37 | . 4 5 10 18 Drop 39 | . 3 7 5 24 Fire 204 | . 10 31 49 114 Melee 19 | . . 6 . 13 Ram . | . . . . . Kick 2 | . 2 . . . Crush . | . . . . . Escape Stasis 15 | . . . . 15 Rewire . | . . . . . Trap . | . . . . . Miscellaneous . | . . . . . Route ------- -11/Scrapyard -10/Materials (discovered 3 exits: [*Mat] / [*Min] / [*Sub]) -10/Subcaves (discovered 2 exits: *Mat / [*Rec]) -8/Materials -8/Garrison (discovered 4 exits: *Mat x4) History --------- Turn | Location | Event 10 | -11/Scrapyard | Discovered new exit (range 16) 67 | -11/Scrapyard | Entered Materials 163 | -10/Materials | Discovered new exit (range 11) 336 | -10/Materials | Build established: Mutant 356 | -10/Materials | Discovered new exit (range 8) 432 | -10/Materials | Discovered new exit (range 6) 439 | -10/Materials | Entered Subcaves 507 | -10/Subcaves | Ambushed by Subdweller buried in earth 548 | -10/Subcaves | Lost 4 parts (1p1n2w) 924 | -10/Subcaves | Core integrity fell below 50% 976 | -10/Subcaves | Learned location of Mines (-9) 1036 | -10/Subcaves | A swath of the cavern ceiling suddenly collapsed 1342 | -10/Subcaves | Shifting Twisted Machinery released Mak. Thermal Plating 1357 | -10/Subcaves | Discovered new exit (range 8) 1358 | -10/Subcaves | Shifting Twisted Machinery released Sub. Shrapnel Launcher 1700 | -10/Subcaves | Discovered new exit (range 10) 1811 | -10/Subcaves | Entered Materials 1811 | -8/Materials | Evolved 4 slots: Propulsion x1, Utility x2, Weapon x1 1831 | -8/Materials | Identified exit to Garrison 2105 | -8/Materials | Destroyed 7 combat bots 2256 | -8/Materials | Build established: Skirmisher 2279 | -8/Materials | Destroyed 7 combat bots 2355 | -8/Materials | Destroyed 7 combat bots 2478 | -8/Materials | Garrison activated, responded to threat 2546 | -8/Materials | Entered Garrison 2582 | -8/Garrison | Triggered checkpoint 2690 | -8/Garrison | Triggered checkpoint 2851 | -8/Garrison | Triggered checkpoint 2866 | -8/Garrison | Core integrity fell below 50% 2884 | -8/Garrison | Triggered checkpoint 2884 | -8/Garrison | Lost 4 parts (1p2n1w) 2893 | -8/Garrison | Destroyed 7 combat bots 3138 | -8/Garrison | Triggered checkpoint 3195 | -8/Garrison | Build established: Scavenger-Tank 3197 | -8/Garrison | Garrison Relay disabled 3263 | -8/Garrison | Discovered new exit (range 14) 3300 | -8/Garrison | Identified exit to Materials 3392 | -8/Garrison | Triggered checkpoint 3712 | -8/Garrison | Discovered exit to Materials (range 12) 3720 | -8/Garrison | Triggered checkpoint 3739 | -8/Garrison | Discovered exit to Materials (range 5) 3808 | -8/Garrison | Lost 4 parts (1p2n1w) 3900 | -8/Garrison | Triggered checkpoint 3956 | -8/Garrison | Triggered checkpoint 4112 | -8/Garrison | Triggered checkpoint 4188 | -8/Garrison | Discovered exit to Materials (range 9) 4204 | -8/Garrison | Triggered checkpoint 4575 | -8/Garrison | Core integrity fell below 20% 4972 | -8/Garrison | Lost 3 parts (1u2w) 5472 | -8/Garrison | Destroyed by P-60 Hacker with Shock Rifle Last Messages --------------- System corrupted: Hpw. Shotgun misfires. Dropped Mic. Nuclear Core. Acquired Lgt. Nuclear Core. Dropped Lgt. Nuclear Core. Acquired Mic. Nuclear Core. Dropped Lgt. Treads. I:RJXF5EJDDCC ALERT: Garrison interior compromised. Y